fUST/lending_fUST_20240120
["ID","MTS","AMOUNT","RATE_DAILY","PERIOD"]
[312264472,1705723281771,-12000.0,0.00016456,2]
[312264473,1705723281879,-900.0,0.00016456,2]
[312264474,1705723284050,682.00291975,0.0001631,2]
[312264475,1705723298477,155.51789431,0.0001631,2]
[312264476,1705723298655,-12000.0,0.00016455,2]
[312264477,1705723298724,-5072.9696902,0.00016455,2]
[312264478,1705723302039,682.00291975,0.0001631,2]
[312264479,1705723303236,155.51878758,0.0001631,2]
[312264480,1705723309655,313.51664528,0.0001631,2]
[312264481,1705723310392,155.15987288,0.0001631,2]
[312264482,1705723312645,67750.92102846,0.0001631,2]
[312264483,1705723313583,2218.76607426,0.0001631,2]
[312264484,1705723319205,-649.48347451,0.00016449,2]
[312264485,1705723319312,-13.25476479,0.00016449,2]
[312264486,1705723320507,-668.36286136,0.00016455,2]
[312264487,1705723320614,-13.64005839,0.00016455,2]
[312264488,1705723367004,-278.24487643,0.00016442,2]
[312264489,1705723367141,-5.67846687,0.00016442,2]
[312264490,1705723371202,-245.0,0.00016442,2]
[312264491,1705723371334,-5.0,0.00016442,2]
[312264492,1705723385033,-12000.0,0.00016455,2]
[312264493,1705723385174,-12000.0,0.00016455,2]
[312264494,1705723385313,-12000.0,0.00016455,2]
[312264495,1705723385448,-12000.0,0.00016455,2]
[312264496,1705723385590,-12000.0,0.00016455,2]
[312264497,1705723385720,-12000.0,0.00016455,2]
[312264498,1705723385869,-12000.0,0.00016455,2]
[312264499,1705723386164,-12000.0,0.00016455,2]
[312264500,1705723386196,-12000.0,0.00016455,2]
[312264501,1705723386229,-12000.0,0.00016455,2]
[312264502,1705723386307,-12000.0,0.00016455,2]
[312264503,1705723386425,-12000.0,0.00016455,2]
[312264504,1705723386533,-12000.0,0.00016455,2]
[312264505,1705723386662,-12000.0,0.00016455,2]
[312264506,1705723386761,-12000.0,0.00016455,2]
[312264507,1705723386922,-12000.0,0.00016455,2]
[312264508,1705723410653,980.77639025,0.00014808,2]
[312264509,1705723629155,-452.57187784,0.00016425,2]
[312264510,1705723629176,-1459.44956504,0.00016425,2]
[312264511,1705723631114,-786.25167679,0.00016425,2]
[312264512,1705723633983,6539.9823397,0.00015552,2]
[312264513,1705723652758,755.4567252,0.00016337,2]
[312264514,1705723675840,3000.0,0.00015423,2]
[312264515,1705723686581,154.86062544,0.00016335,2]
[312264516,1705723703691,1109.3928185,0.00015423,2]
[312264517,1705723717697,1261.87886698,0.00015423,2]
[312264518,1705723720868,24900.0,0.00015417,2]
[312264519,1705723784980,3290.9517547,0.00015408,2]
[312264520,1705723787929,185.3441265,0.00016326,2]
[312264521,1705723793313,1252.98171166,0.000164,2]
[312264522,1705723793659,211.47192424,0.000164,2]
[312264523,1705723795178,616.55903708,0.000164,2]
[312264524,1705723797013,154.73694719,0.000164,2]
[312264525,1705723798006,644.19635374,0.000164,2]
[312264526,1705723798735,199.18550125,0.000164,2]
[312264527,1705723800888,334.248221,0.00015405,2]
[312264528,1705723802009,323.47024933,0.000164,2]
[312264529,1705723802273,20867.97666951,0.000164,2]
[312264530,1705723803971,329.42705251,0.000164,2]
[312264531,1705723804758,20895.55414875,0.000164,2]
[312264532,1705723805117,154.73694719,0.000164,2]
[312264533,1705723807351,154.73694719,0.000164,2]
[312264534,1705723808598,876.11923106,0.000164,2]
[312264535,1705723808759,254.02996633,0.000164,2]
[312264536,1705723810504,5181.4298309,0.000164,2]
[312264537,1705723810534,687.73320843,0.000164,2]
[312264538,1705723813998,166.94378863,0.000164,2]
[312264539,1705723815581,18898.32158241,0.000164,2]
[312264540,1705723816126,521.94289961,0.000164,2]
[312264541,1705723817000,19694.96215333,0.000164,2]
[312264542,1705723817074,8001.61067914,0.000164,2]
[312264543,1705723817102,154.73694719,0.000164,2]
[312264544,1705723817405,191.35107696,0.000164,2]
[312264545,1705723817722,89492.93468699,0.000164,2]
[312264546,1705723820610,262.24692446,0.000164,2]
[312264547,1705723820850,1242.13158622,0.000164,2]
[312264548,1705723822194,594.94951122,0.000164,2]
[312264549,1705723822844,154.73694719,0.000164,2]
[312264550,1705723823250,2038.4422792,0.000164,2]
[312264551,1705723824065,2761.41512634,0.000164,2]
[312264552,1705723824496,36953.29134027,0.000164,2]
[312264553,1705723824671,154.73694719,0.000164,2]
[312264554,1705723825825,164.6047724,0.000164,2]
[312264555,1705723827281,1266.38115634,0.000164,2]
[312264556,1705723827930,163.07750006,0.000164,2]
[312264557,1705723828506,5334.73672813,0.00016238,2]
[312264558,1705723831004,16344.28495405,0.000164,2]
[312264588,1705723832546,-154.73694719,0.00016401,2]
[312264589,1705723832555,-154.73694719,0.00016401,2]
[312264590,1705723832565,-160.96626873,0.00016401,2]
[312264591,1705723832574,-213.36686653,0.00016401,2]
[312264592,1705723832586,-323.01933147,0.00016401,2]
[312264593,1705723832595,-3744.87402007,0.00016401,2]
[312264594,1705723832605,-2001.92927764,0.00016401,2]
[312264595,1705723832615,-711.55955135,0.00016401,2]
[312264596,1705723832624,-154.73694719,0.00016402,2]
[312264597,1705723832634,-154.73694719,0.00016402,3]
[312264598,1705723832642,-265.38873656,0.00016402,2]
[312264599,1705723832651,-154.73694719,0.00016402,2]
[312264600,1705723832661,-7957.69581218,0.00016402,2]
[312264601,1705723832670,-299.72176226,0.00016402,2]
[312264602,1705723832679,-226.60082045,0.00016402,2]
[312264603,1705723832688,-282.83808368,0.00016402,2]
[312264604,1705723832697,-1052.86240254,0.00016402,2]
[312264605,1705723832707,-1252.98171166,0.00016402,2]
[312264606,1705723832717,-365.68670225,0.00016402,2]
[312264607,1705723832726,-199.18550125,0.00016402,2]
[312264608,1705723832736,-324.09556939,0.00016402,2]
[312264609,1705723832745,-329.42705251,0.00016402,2]
[312264610,1705723832754,-9428.13993292,0.00016402,2]
[312264611,1705723832763,-215.13577288,0.00016402,2]
[312264612,1705723832772,-390.01778428,0.00016402,2]
[312264613,1705723832781,-492.88988579,0.00016402,2]
[312264614,1705723832790,-246.81190951,0.00016402,2]
[312264615,1705723832800,-297.15144475,0.00016402,2]
[312264616,1705723832809,-166.94378863,0.00016402,2]
[312264617,1705723832818,-521.94289961,0.00016402,2]
[312264618,1705723832827,-154.73694719,0.00016403,2]
[312264619,1705723832836,-175.16804152,0.00016403,2]
[312264620,1705723832846,-1293.3633064,0.00016403,2]
[312264621,1705723832855,-20867.97666951,0.00016403,2]
[312264622,1705723832864,-1696.16568403,0.00016404,2]
[312264623,1705723832873,-21679.52592389,0.00016404,2]
[312264624,1705723832883,-21518.67821752,0.00016405,2]
[312264625,1705723833092,218.60792404,0.000164,2]
[312264626,1705723833590,18898.32158241,0.000164,2]
[312264627,1705723833862,19861.0002391,0.000164,2]
[312264629,1705723835697,1696.16568403,0.000164,2]
[312264696,1705723838772,-348.1131464,0.00016401,2]
[312264698,1705723838782,-596.53916352,0.00016402,2]
[312264699,1705723838791,-1207.84948535,0.00016402,2]
[312264705,1705723838834,-34.28210087,0.00016402,2]
[312264707,1705723838843,-543.29466566,0.00016404,2]
[312264709,1705723838852,-2038.4422792,0.00016404,2]
[312264711,1705723838863,-20180.75442845,0.00016404,2]
[312264713,1705723838872,-9145.74174464,0.00016405,2]
[312264715,1705723838883,-50519.83620312,0.00016405,2]
[312264717,1705723838892,-903.13044819,0.00016416,2]
[312264719,1705723838902,-155.22104788,0.00016416,2]
[312264721,1705723838911,-262.60832706,0.00016417,2]
[312264723,1705723838921,-271.6849348,0.00016417,2]
[312264726,1705723838930,-156.37687942,0.00016417,2]
[312264729,1705723838939,-170.35721783,0.00016422,2]
[312264732,1705723838948,-72827.02415122,0.00016422,2]
[312264735,1705723838957,-3163.76943577,0.00016427,2]
[312264738,1705723838966,-2101.67947703,0.00016427,2]
[312264740,1705723838975,-155.37602413,0.00016427,2]
[312264742,1705723838985,-553.14293514,0.00016427,2]
[312264744,1705723838994,-1589.24944099,0.00016427,2]
[312264746,1705723839005,-244.34815903,0.00016427,2]
[312264748,1705723839014,-454.23669937,0.00016427,2]
[312264750,1705723839023,-8765.95151497,0.00016428,2]
[312264752,1705723839033,-1738.29519646,0.00016432,2]
[312264754,1705723839042,-360.64236185,0.00016437,2]
[312264756,1705723839051,-286.23049881,0.00016437,2]
[312264757,1705723839060,-1609.56871004,0.00016438,2]
[312264759,1705723839069,-198.20629725,0.00016445,2]
[312264761,1705723839079,-155.08684864,0.00016446,2]
[312264763,1705723839088,-260.66534834,0.00016446,2]
[312264765,1705723839097,-2717.41472124,0.00016446,2]
[312264767,1705723839106,-156.35727794,0.00016446,2]
[312264769,1705723839114,-166.49194019,0.00016446,2]
[312264771,1705723839123,-286.70817143,0.00016446,2]
[312264773,1705723839132,-227.05797875,0.00016446,2]
[312264774,1705723839142,-154.86062544,0.00016446,2]
[312264776,1705723839151,-259.08616376,0.00016446,2]
[312264778,1705723839160,-166.49400102,0.00016446,2]
[312264780,1705723839169,-6664.83248434,0.00016447,2]
[312264782,1705723839177,-1990.91655753,0.00016447,2]
[312264784,1705723839186,-155.35582989,0.00016447,2]
[312264785,1705723839196,-154.86062544,0.00016447,2]
[312264787,1705723839206,-1768.74706888,0.00016451,2]
[312264789,1705723839215,-155.30050826,0.00016451,2]
[312264791,1705723839223,-155.25851462,0.00016451,2]
[312264792,1705723839232,-470.52459336,0.00016451,2]
[312264794,1705723839241,-185.30842625,0.00016451,2]
[312264796,1705723839251,-300.74641605,0.00016451,2]
[312264798,1705723839261,-158.77285972,0.00016455,2]
[312264800,1705723839270,-342.81948955,0.00016455,2]
[312264802,1705723839279,-273.11829884,0.000165,2]
[312264804,1705723839288,-742.58790071,0.00017235,2]
[312264806,1705723839297,-200.0,0.00017256,2]
[312264808,1705723839307,-155.20214118,0.00017446,2]
[312264810,1705723839316,-1578.25252974,0.00017446,2]
[312264812,1705723839326,-155.10939291,0.00017446,2]
[312264814,1705723839335,-787.34773645,0.00017471,2]
[312264816,1705723839345,-10531.78529971,0.00017898,2]
[312264818,1705723839354,-6043.33980046,0.000189,2]
[312264820,1705723839364,-280.0,0.00018981,2]
[312264822,1705723839373,-1581.76828075,0.00019,2]
[312264824,1705723839384,-172.027053,0.00019178,2]
[312264826,1705723839393,-170.871083,0.00019178,2]
[312264828,1705723839402,-1114.14548175,0.000195,2]
[312264843,1705723839535,-824.03065617,0.000197,2]
[312264845,1705723839548,-755.45672519,0.00019728,2]
[312264847,1705723839557,-154.73694719,0.0002,2]
[312264848,1705723839567,-1197.48170656,0.0002,2]
[312264849,1705723839577,-849.96832798,0.0002,2]
[312264850,1705723839587,-678.35754423,0.0002,2]
[312264851,1705723839596,-583.38359408,0.0002,2]
[312264852,1705723839606,-154.73694719,0.0002,2]
[312264854,1705723839616,-154.73694719,0.0002,2]
[312264856,1705723839625,-154.73694719,0.0002,2]
[312264858,1705723839634,-154.73694719,0.0002,2]
[312264860,1705723839643,-154.73694719,0.0002,2]
[312264862,1705723839652,-391.0,0.00020879,2]
[312264864,1705723839661,-232.9125187,0.00021,2]
[312264866,1705723839670,-16301.36562292,0.00021,2]
[312264868,1705723839678,-1690.81907761,0.00021,2]
[312264869,1705723839688,-194.2806405,0.00021,2]
[312264871,1705723839697,-1764.32790583,0.00021,2]
[312264873,1705723839707,-327.38324213,0.00021,2]
[312264875,1705723839716,-166.666666,0.00021918,2]
[312264877,1705723839725,-3966.85623058,0.00022,2]
[312264879,1705723839734,-425.80364021,0.00022,2]
[312264880,1705723839743,-10283.28004935,0.00022221,2]
[312264881,1705723839754,-166.666666,0.00022431,2]
[312264882,1705723839763,-166.666666,0.00022944,2]
[312264883,1705723839772,-200.0,0.00022967,7]
[312264884,1705723839782,-348.0,0.00022967,7]
[312264885,1705723839791,-1570.89243892,0.00023,2]
[312264886,1705723839800,-334.248221,0.00023107,2]
[312264887,1705723839809,-755.45672519,0.00023119,2]
[312264888,1705723839819,-500.0,0.00023288,2]
[312264889,1705723839828,-500.0,0.00023288,2]
[312264890,1705723839837,-500.0,0.00023288,2]
[312264891,1705723839846,-500.0,0.00023288,2]
[312264892,1705723839857,-500.0,0.00023288,2]
[312264893,1705723839865,-465.83736567,0.00023288,2]
[312264894,1705723839875,-173.91649457,0.00023288,2]
[312264895,1705723839883,-500.0,0.00023288,2]
[312264896,1705723839892,-175.39477631,0.00023288,2]
[312264897,1705723839902,-201.52068451,0.00023288,2]
[312264898,1705723839912,-328.78042359,0.00023288,2]
[312264899,1705723839921,-500.0,0.00023288,2]
[312264900,1705723839931,-501.12191629,0.00023288,2]
[312264901,1705723839940,-500.0,0.00023288,2]
[312264902,1705723839949,-500.0,0.00023288,2]
[312264903,1705723839959,-500.0,0.00023288,2]
[312264904,1705723839968,-500.0,0.00023288,2]
[312264905,1705723839978,-223.43159092,0.00023288,2]
[312264906,1705723839986,-500.0,0.00023288,2]
[312264907,1705723839996,-500.0,0.00023288,2]
[312264908,1705723840004,-500.0,0.00023288,2]
[312264909,1705723840014,-500.0,0.00023288,2]
[312264910,1705723840025,-500.0,0.00023288,2]
[312264911,1705723840034,-500.00000001,0.00023288,2]
[312264912,1705723840043,-500.0,0.00023288,2]
[312264913,1705723840052,-500.0,0.00023288,2]
[312264914,1705723840061,-500.0,0.00023288,2]
[312264915,1705723840071,-500.0,0.00023288,2]
[312264916,1705723840080,-269.56659782,0.00023288,2]
[312264917,1705723840089,-152.97650775,0.00023288,2]
[312264918,1705723840098,-500.0,0.00023288,2]
[312264919,1705723840107,-500.0,0.00023288,2]
[312264920,1705723840116,-500.0,0.00023288,2]
[312264921,1705723840125,-335.04727393,0.00023288,2]
[312264922,1705723840134,-166.666666,0.00023456,2]
[312264923,1705723840144,-6043.33980046,0.000239,2]
[312264924,1705723840153,-166.666666,0.00023969,2]
[312264925,1705723840162,-4012.5594856,0.00024,2]
[312264926,1705723840171,-166.666666,0.00024482,2]
[312264927,1705723840181,-498.11936971,0.0002495,5]
[312264928,1705723840190,-701.82098672,0.00025,2]
[312264929,1705723840200,-1045.90652664,0.00025,2]
[312264930,1705723840209,-4695.18745087,0.00025,2]
[312264931,1705723840218,-1001.87795597,0.00025,2]
[312264932,1705723840228,-4721.06450288,0.00025,2]
[312264933,1705723840237,-155.16885659,0.00025,2]
[312264934,1705723840247,-155.5855391,0.00025,2]
[312264935,1705723840257,-193.30440341,0.00025,2]
[312264936,1705723840267,-200.0,0.00025264,7]
[312264937,1705723840276,-200.0,0.00025264,7]
[312264938,1705723840285,-368.0,0.00025264,7]
[312264939,1705723840295,-2093.74877759,0.00025297,2]
[312264940,1705723840304,-3941.84415328,0.00026,2]
[312264941,1705723840313,-755.45672519,0.00026509,2]
[312264942,1705723840323,-646.38296894,0.00026612,2]
[312264943,1705723840332,-3601.6673276,0.00026853,2]
[312264944,1705723840341,-260.03395017,0.00027,2]
[312264945,1705723840350,-12423.32320464,0.00027395,2]
[312264946,1705723840360,-21506.66,0.00027397,3]
[312264947,1705723840369,-200.0,0.0002779,15]
[312264948,1705723840378,-200.0,0.0002779,15]
[312264949,1705723840387,-200.0,0.0002779,15]
[312264950,1705723840397,-200.0,0.0002779,15]
[312264951,1705723840406,-275.0,0.0002779,15]
[312264952,1705723840416,-621.31914845,0.00027942,2]
[312264953,1705723840425,-312.99786489,0.00028,7]
[312264954,1705723840435,-290.16476431,0.00028,2]
[312264955,1705723840445,-154.73694719,0.00028,10]
[312264956,1705723840455,-11778.92816279,0.00028749,2]
[312264957,1705723840467,-1164.81326935,0.000288,3]
[312264958,1705723840476,-154.73694719,0.00029,2]
[312264959,1705723840485,-1879.95128807,0.00029,2]
[312264960,1705723840494,-155.0,0.00029,2]
[312264961,1705723840503,-620.06595742,0.00029339,2]
[312264962,1705723840513,-620.00660312,0.0002937,2]
[312264963,1705723840522,-7640.62811996,0.000295,30]
[312264964,1705723840536,-307.95,0.00029789,2]
[312264965,1705723840546,-307.95,0.00029789,2]
[312264966,1705723840555,-307.95,0.00029789,2]
[312264967,1705723840564,-307.95,0.00029789,2]
[312264968,1705723840574,-307.95,0.00029789,2]
[312264969,1705723840583,-307.95,0.00029789,2]
[312264970,1705723840592,-307.95,0.00029789,2]
[312264971,1705723840601,-307.95,0.00029789,2]
[312264972,1705723840610,-307.95,0.00029789,2]
[312264973,1705723840621,-307.95,0.00029789,2]
[312264974,1705723840630,-614.9050508,0.00029789,4]
[312264976,1705723840639,-500.0,0.00029789,4]
[312264978,1705723840649,-500.0,0.00029789,4]
[312264980,1705723840658,-365.26595939,0.00029789,4]
[312264982,1705723840667,-213.35341648,0.00029789,4]
[312264984,1705723840676,-156.14531815,0.00029789,4]
[312264985,1705723840685,-153.72626269,0.00029789,4]
[312264987,1705723840694,-421.97185662,0.00029789,2]
[312264989,1705723840703,-295393.07321674,0.0002979,7]
[312264991,1705723840712,-1562.22183731,0.000299,2]
[312264993,1705723840720,-755.45672519,0.000299,2]
[312264994,1705723840729,-29957.37867167,0.0003,2]
[312264996,1705723840738,-30327.30491484,0.0003,2]
[312264998,1705723840747,-30497.95907604,0.0003,3]
[312265000,1705723840757,-2104.48868232,0.0003,4]
[312265002,1705723840766,-18589.14989047,0.0003,2]
[312265003,1705723840775,-699.95088598,0.0003,2]
[312265004,1705723840784,-363330.18016062,0.0003,30]
[312265005,1705723840794,-682.57522362,0.0003,3]
[312265006,1705723840803,-465.0881123,0.0003,2]
[312265007,1705723840812,-2891.47244817,0.0003,2]
[312265008,1705723840821,-2891.47244817,0.0003,2]
[312265009,1705723840830,-2891.47244817,0.0003,2]
[312265010,1705723840840,-2891.47244817,0.0003,2]
[312265011,1705723840849,-2891.47244817,0.0003,2]
[312265012,1705723840858,-2891.47244817,0.0003,2]
[312265013,1705723840868,-2891.47244817,0.0003,2]
[312265014,1705723840877,-2891.47244817,0.0003,2]
[312265015,1705723840886,-2891.47244817,0.0003,2]
[312265016,1705723840896,-2891.47244817,0.0003,2]
[312265017,1705723840904,-7875.511004,0.0003,2]
[312265018,1705723840913,-7875.511004,0.0003,2]
[312265020,1705723840922,-155.0,0.0003,2]
[312265022,1705723840931,-497.642192,0.0003,2]
[312265024,1705723840941,-497.642192,0.0003,2]
[312265026,1705723840951,-500.0,0.00030136,2]
[312265028,1705723840960,-401.4689539,0.00030137,2]
[312265029,1705723840969,-199.0990555,0.00030137,2]
[312265030,1705723840979,-199.0990555,0.00030137,2]
[312265031,1705723840989,-199.0990555,0.00030137,2]
[312265032,1705723840998,-199.0990555,0.00030137,2]
[312265033,1705723841007,-199.0990555,0.00030137,2]
[312265034,1705723841016,-348.9326312,0.00030137,2]
[312265035,1705723841025,-199.0990555,0.00030137,2]
[312265036,1705723841034,-160.881122,0.00030137,2]
[312265037,1705723841043,-157.915106,0.00030137,2]
[312265038,1705723841053,-253.18311397,0.00030137,7]
[312265039,1705723841063,-509.36700614,0.00030273,2]
[312265040,1705723841071,-155.0,0.0003037,2]
[312265041,1705723841080,-1500.0,0.000305,2]
[312265042,1705723841089,-12553.0,0.000305,2]
[312265043,1705723841099,-200.0,0.0003057,15]
[312265044,1705723841109,-200.0,0.0003057,15]
[312265045,1705723841120,-200.0,0.0003057,15]
[312265046,1705723841130,-200.0,0.0003057,15]
[312265047,1705723841139,-200.0,0.0003057,15]
[312265048,1705723841148,-200.0,0.0003057,15]
[312265049,1705723841157,-305.0,0.0003057,15]
[312265050,1705723841167,-325.0,0.00030808,30]
[312265051,1705723841176,-325.0,0.00030818,30]
[312265052,1705723841184,-325.0,0.00030828,30]
[312265053,1705723841194,-620.00033016,0.00030838,2]
[312265054,1705723841203,-569.0,0.0003084,30]
[312265055,1705723841212,-569.0,0.0003085,30]
[312265056,1705723841221,-569.0,0.0003086,30]
[312265057,1705723841231,-275.07,0.0003089,30]
[312265058,1705723841241,-3000.0,0.000309,7]
[312265059,1705723841250,-238.14143998,0.00031,3]
[312265060,1705723841259,-2846.05665284,0.00031,2]
[312265061,1705723841268,-89943.79072898,0.00031,2]
[312265062,1705723841277,-200.0,0.000313,4]
[312265063,1705723841287,-9382.14117996,0.00031325,3]
[312265064,1705723841296,-8213.21259141,0.00031333,3]
[312265065,1705723841305,-151.0,0.00031476,2]
[312265066,1705723841315,-1500.0,0.000315,2]
[312265067,1705723841324,-157.915106,0.00031575,2]
[312265068,1705723841334,-50000.0,0.00031629,3]
[312265069,1705723841343,-66295.61467535,0.00031629,3]
[312265070,1705723841353,-153.381924,0.00031629,2]
[312265071,1705723841362,-151.0,0.00031629,2]
[312265072,1705723841371,-885.43919777,0.00031629,2]
[312265073,1705723841385,-6990.07180623,0.00031629,2]
[312265074,1705723841395,-3212.77771665,0.00031629,2]
[312265075,1705723841407,-978.1865153,0.00031629,2]
[312265076,1705723841418,-3684.54677205,0.00031629,2]
[312265077,1705723841428,-497.642192,0.00031629,2]
[312265078,1705723841440,-497.642192,0.00031629,2]
[312265079,1705723841450,-156.18717786,0.0003174,2]
[312265080,1705723841459,-160.881122,0.00031781,2]
[312265081,1705723841468,-1000.0,0.000318,7]
[312265082,1705723841478,-12249.29617136,0.00031825,5]
[312265083,1705723841487,-1000.0,0.00031899,7]
[312265084,1705723841496,-1000.0,0.00031899,7]
[312265085,1705723841505,-60376.85195784,0.00031915,4]
[312265086,1705723841514,-154.73694719,0.00032,4]
[312265087,1705723841523,-319.15753811,0.00032,4]
[312265088,1705723841533,-1500.0,0.000325,2]
[312265089,1705723841546,-500.0,0.00032502,2]
[312265090,1705723841554,-500.0,0.00032502,2]
[312265091,1705723841563,-500.0,0.00032502,2]
[312265092,1705723841572,-500.0,0.00032502,2]
[312265093,1705723841581,-500.0,0.00032502,2]
[312265094,1705723841593,-461.1787881,0.00032876,7]
[312265095,1705723841602,-156.54255403,0.00032876,7]
[312265096,1705723841611,-428.01204989,0.00032876,7]
[312265097,1705723841622,-393.68719089,0.00032876,7]
[312265098,1705723841632,-300.67314977,0.00032876,7]
[312265099,1705723841641,-404.34989674,0.00032876,7]
[312265100,1705723841651,-279.50241941,0.00032876,7]
[312265101,1705723841660,-500.0,0.00032876,7]
[312265102,1705723841669,-506.54608223,0.00032876,7]
[312265103,1705723841678,-500.0,0.00032876,7]
[312265104,1705723841687,-500.0,0.00032876,7]
[312265105,1705723841696,-420.9124107,0.00032876,7]
[312265106,1705723841705,-496.58531769,0.00032876,7]
[312265107,1705723841714,-500.0,0.00032876,7]
[312265108,1705723841723,-500.0,0.00032876,7]
[312265109,1705723841733,-292.57369319,0.00032876,7]
[312265110,1705723841742,-500.0,0.00032876,7]
[312265111,1705723841751,-500.0,0.00032876,7]
[312265112,1705723841760,-500.0,0.00032876,7]
[312265113,1705723841769,-500.0,0.00032876,7]
[312265114,1705723841778,-500.0,0.00032876,7]
[312265115,1705723841787,-500.0,0.00032876,7]
[312265116,1705723841796,-500.0,0.00032876,7]
[312265117,1705723841805,-239.73238081,0.00032876,7]
[312265118,1705723841814,-500.0,0.00032876,7]
[312265119,1705723841823,-500.0,0.00032876,7]
[312265120,1705723841833,-250.0,0.00032876,7]
[312265121,1705723841842,-6763.78500734,0.00033,4]
[312265122,1705723841851,-170.0,0.00033,2]
[312265123,1705723841860,-155.0,0.00033,2]
[312265124,1705723841870,-157.915106,0.00033014,2]
[312265125,1705723841879,-151.0,0.00033162,2]
[312265126,1705723841888,-1000.0,0.00033236,2]
[312265127,1705723841898,-797.94397896,0.0003331,2]
[312265128,1705723841908,-1000.09803464,0.00033344,2]
[312265129,1705723841917,-200.0,0.000334,5]
[312265130,1705723841927,-300.295829,0.00033411,2]
[312265131,1705723841936,-160.881122,0.00033425,2]
[312265132,1705723841945,-1232.39456821,0.00033499,4]
[312265133,1705723842055,-2452.49821714,0.000335,2]
[312265134,1705723842065,-283.12887752,0.000335,3]
[312265135,1705723842074,-1765.61042526,0.000335,4]
[312265136,1705723842083,-2799.38070582,0.000335,4]
[312265137,1705723842093,-1026.09234423,0.000335,2]
[312265138,1705723842101,-195.24830444,0.000335,4]
[312265139,1705723842111,-300.0,0.000335,4]
[312265140,1705723842120,-154.73694719,0.000335,4]
[312265141,1705723842129,-410.58260666,0.000335,4]
[312265142,1705723842138,-351.30865786,0.000335,4]
[312265143,1705723842148,-154.73694719,0.000335,2]
[312265144,1705723842157,-154.73694719,0.000335,4]
[312265145,1705723842166,-200.37400988,0.000335,2]
[312265146,1705723842175,-4321.29306998,0.000335,4]
[312265147,1705723842185,-66200.56665443,0.000335,8]
[312265148,1705723842194,-1500.0,0.000335,2]
[312265149,1705723842203,-539.450103,0.000335,3]
[312265150,1705723842212,-163.995668,0.000335,2]
[312265151,1705723842221,-190.664235,0.000335,6]
[312265152,1705723842230,-245.111986,0.000335,6]
[312265153,1705723842239,-497.642192,0.000335,2]
[312265154,1705723842249,-497.642192,0.000335,2]
[312265155,1705723842259,-160.0,0.00033633,5]
[312265156,1705723842269,-360.3046512,0.00033798,3]
[312265157,1705723842278,-160.0,0.00033823,6]
[312265158,1705723842287,-151276.37130256,0.00033898,2]
[312265159,1705723842539,1266.38115634,0.000164,2]
[312265160,1705723842595,-191.35107696,0.00016401,2]
[312265161,1705723842605,-1438.69728082,0.00016401,2]
[312265162,1705723842614,-155.87200623,0.00016401,2]
[312265163,1705723842627,-19523.07961698,0.00033898,2]
[312265164,1705723842683,155.09268445,0.000164,2]
[312265215,1705723843612,-4058.31933782,0.00033898,2]
[312265228,1705723843999,164.6047724,0.000164,2]
[312265302,1705723994464,172.61810537,0.000164,2]
[312265303,1705723996217,310.23933201,0.000164,2]
[312265304,1705724340770,976.79905731,0.00015402,2]
[312265305,1705724365730,250.0,0.00016112,2]
[312265306,1705724418696,831.486816,0.00016104,2]
[312265307,1705724566887,3000.0,0.00015984,2]
[312265308,1705724660021,422.519397,0.0001597,2]
[312265309,1705724714228,24900.0,0.00015921,2]
[312265310,1705724731107,-165.08113318,0.00016874,2]
[312265311,1705724731127,-2738.73137938,0.00016874,2]
[312265361,1705725032701,-190.33320905,0.00016637,2]
[312265363,1705725032712,-190.33320905,0.00016638,2]
[312265366,1705725032721,-1438.69728082,0.00016735,2]
[312265367,1705725032730,-154.73694719,0.00016735,2]
[312265369,1705725032740,-165.08113318,0.00016735,2]
[312265372,1705725032749,-154.73694719,0.00016735,2]